bitfinex/quotes_ETHUSD_20260313
["timestamp","ask_amount","ask_price","bid_price","bid_amount"]
[1773437313181,3.70603919,2105.2,2104.8,1.706]
[1773437314792,3.70603919,2105.2,2104.9,1.721]
[1773437315112,4.8935783,2105.2,2104.9,1.721]
[1773437315318,3.70603919,2105.2,2104.9,1.721]
[1773437315486,1.23501878,2105.3,2104.7,0.13539169]
[1773437315686,1.23501878,2105.3,2104.8,1.729]
[1773437317197,1.23501878,2105.3,2104.8,1.8721524]
[1773437317517,2.80040378,2105.2,2104.8,1.8721524]
[1773437317708,2.84790294,2105.1,2104.8,1.8721524]
[1773437317901,0.04749916,2105.1,2104.8,0.1431524]
[1773437318098,0.04749916,2105.1,2104.9,1.744]
[1773437318810,4.9410473,2105.3,2104.9,1.744]
[1773437319010,2.80056755,2105.2,2104.9,1.744]
[1773437319211,2.84806671,2105.1,2104.9,1.744]
[1773437319410,0.04749916,2105.1,2104.9,1.744]
[1773437319611,4.9410473,2105.3,2104.9,1.744]
[1773437319795,2.8012557,2105.2,2104.9,1.744]
[1773437320120,0.001,2105.0,2104.9,1.744]
[1773437320416,2.8022557,2105.0,2104.9,1.744]
[1773437320618,2.84975486,2105.0,2104.9,1.744]
[1773437321415,2.84975486,2105.0,2104.7,0.0011]
[1773437321416,3.70603919,2104.9,2104.7,0.0011]
[1773437321621,0.04749916,2104.8,2104.7,0.0011]
[1773437321915,6.50936126,2104.8,2104.7,0.0011]
[1773437322100,6.55686042,2104.8,2104.7,1.7281]
[1773437322615,4.01853919,2104.7,2104.5,0.0011]
[1773437322815,2.80332207,2104.6,2104.5,0.0011]
[1773437322997,2.80332207,2104.6,2104.5,1.7051]
[1773437323795,2.80332207,2104.6,2104.5,0.0011]
[1773437323998,2.80332207,2104.6,2104.5,1.7131]
[1773437324319,2.80332207,2104.6,2104.5,0.0011]
[1773437324508,2.80332207,2104.6,2104.5,1.7171]
[1773437324815,3.99119625,2104.6,2104.5,1.7171]
[1773437325396,3.99119625,2104.6,2104.5,1.724]
[1773437325722,8.00973544,2104.6,2104.5,1.725]
[1773437326024,8.00973544,2104.6,2104.1,1.566]
[1773437326219,2.80332207,2104.5,2104.1,1.566]
[1773437326419,2.80332207,2104.4,2104.2,0.04752399]
[1773437326724,0.04749916,2104.8,2104.2,0.04752399]
[1773437326923,2.80742511,2104.7,2104.1,2.75413562]
[1773437327223,2.69801198,2104.6,2104.2,1.735]
[1773437327396,1.23618036,2105.0,2104.2,1.735]
[1773437328420,1.23618036,2105.0,2104.3,1.18804352]
[1773437330021,5.25471955,2105.0,2104.3,1.18804352]
[1773437330327,8.62997976,2105.0,2104.3,1.18804352]
[1773437331312,4.01853919,2104.9,2104.0,4.75262582]
[1773437331521,0.04749916,2104.8,2104.4,3.322]
[1773437333003,0.04749916,2104.8,2104.5,0.0011]
[1773437333204,3.42275937,2104.8,2104.5,1.566]
[1773437333526,4.61055725,2104.8,2104.5,1.566]
[1773437334023,3.42275937,2104.8,2104.3,1.5671]
[1773437334223,3.37526021,2104.7,2104.4,1.566]
[1773437334431,3.37526021,2104.7,2104.3,1.18913847]
[1773437334432,3.37526021,2104.7,2104.5,3.327]
[1773437334812,3.37526021,2104.7,2104.6,1.762]
[1773437335008,3.37526021,2104.7,2104.5,1.566]
[1773437335402,3.37526021,2104.7,2104.3,1.5671]
[1773437335803,3.37526021,2104.7,2104.3,2.75513812]
[1773437336303,3.37526021,2104.7,2104.4,1.767]
[1773437337402,8.58162244,2104.7,2104.5,1.77]
[1773437337631,4.06603835,2104.6,2104.2,1.566]
[1773437337811,4.06603835,2104.6,2104.0,1.189276]
[1773437338009,4.06603835,2104.6,2104.1,1.566]
[1773437338626,4.06603835,2104.6,2104.2,0.04752399]
[1773437339112,2.83112593,2104.5,2104.3,1.752]
[1773437339307,2.83112593,2104.4,2104.2,0.04752399]
[1773437339533,4.06603835,2104.6,2103.9,0.88186369]
[1773437339534,4.01853919,2104.2,2103.9,0.88186369]
[1773437339702,4.01853919,2104.0,2102.8,1.188891]
[1773437339923,4.01853919,2104.0,2102.7,5.90582209]
[1773437339924,4.01853919,2103.7,2102.7,1.566]
[1773437340130,10.24561631,2103.6,2102.8,0.0011]
[1773437340434,4.01853919,2103.4,2102.9,1.566]
[1773437340620,2.8306215,2103.3,2102.8,0.0011]
[1773437340933,2.8306215,2103.2,2102.9,1.566]
[1773437341135,2.8306215,2103.1,2102.9,1.566]
[1773437341313,4.01853919,2103.3,2103.0,1.7521]
[1773437341514,2.82332777,2103.2,2103.1,2.94172141]
[1773437341715,2.82332777,2103.2,2103.1,1.753]
[1773437342433,2.82332777,2103.2,2103.1,1.756]
[1773437342629,2.82332777,2103.2,2102.7,0.023849]
[1773437342814,4.01853919,2103.3,2103.1,1.757]
[1773437343014,2.81968616,2103.2,2102.4,1.18911719]
[1773437343209,2.81968616,2103.1,2102.8,1.566]
[1773437343416,4.01853919,2103.3,2102.8,1.566]
[1773437343616,2.81643752,2103.2,2102.8,1.1888349]
[1773437343815,2.81643752,2103.1,2102.9,3.327]
[1773437344014,4.01853919,2103.5,2102.9,3.327]
[1773437344207,1.18844453,2103.6,2102.9,3.327]
[1773437344208,6.83251908,2103.4,2102.9,3.327]
[1773437344408,2.81397989,2103.3,2102.9,3.327]
[1773437344608,2.81397989,2103.2,2102.9,3.327]
[1773437344803,4.01853919,2103.4,2102.9,3.327]
[1773437345133,2.81398311,2103.3,2103.0,1.567]
[1773437345436,4.01853919,2103.4,2103.1,0.0011]
[1773437345630,2.81224258,2103.3,2103.1,0.0011]
[1773437345934,4.01853919,2103.7,2103.1,0.0011]
[1773437346130,1.18833277,2103.8,2103.1,0.0011]
[1773437346131,6.83039195,2103.6,2103.1,0.0011]
[1773437346337,2.81185276,2103.5,2103.1,0.0011]
[1773437346535,4.01853919,2103.6,2103.1,0.0011]
[1773437346712,2.81068991,2103.5,2103.2,1.77]
[1773437347034,4.01853919,2103.6,2103.2,1.77]
[1773437347218,4.01853919,2103.4,2103.3,1.771]
[1773437347540,2.80982401,2103.4,2103.3,1.771]
[1773437348139,2.80982401,2103.5,2103.3,1.771]
[1773437348330,5.20698852,2103.6,2103.3,1.771]
[1773437348528,5.20698516,2103.6,2103.1,1.18977847]
[1773437348727,5.20698516,2103.6,2103.4,1.774]
[1773437349318,2.80854596,2103.5,2103.4,1.774]
[1773437349644,6.82708515,2103.5,2103.4,1.776]
[1773437351145,6.82708515,2103.5,2103.1,0.0011]
[1773437351328,5.20703564,2103.5,2103.1,0.0011]
[1773437351728,4.01853919,2103.5,2103.1,0.0011]
[1773437352451,0.05942759,2103.4,2103.2,1.78]
[1773437353250,4.01853919,2103.5,2103.2,1.78]
[1773437353421,0.05942759,2103.4,2103.2,1.78]
[1773437355575,2.86694817,2103.5,2103.2,1.78]
[1773437356420,4.01853919,2103.4,2103.1,0.0011]
[1773437356621,4.01853919,2103.4,2103.3,1.784]
[1773437357541,4.01853919,2103.4,2103.3,1.785]
[1773437358660,4.07796678,2103.4,2103.3,1.785]
[1773437359356,4.07796678,2103.4,2103.1,0.0011]
[1773437360449,4.01853919,2103.4,2103.2,1.786]
[1773437360651,4.07796113,2103.6,2103.2,1.786]
[1773437360841,6.82782072,2103.5,2103.1,1.18977504]
[1773437361031,4.01853919,2103.5,2103.3,1.786]
[1773437361429,0.05942194,2103.6,2103.3,1.786]
[1773437361651,4.01853919,2103.8,2103.3,1.786]
[1773437361652,2.87008826,2103.7,2103.3,1.786]
[1773437362222,0.05941911,2103.7,2103.3,1.786]
[1773437362422,2.87157197,2103.9,2103.3,1.786]
[1773437362618,4.07794983,2104.0,2103.4,1.18855186]
[1773437362824,2.81214122,2103.9,2103.4,1.18855186]
[1773437363040,2.87155469,2103.9,2103.4,1.18855186]
[1773437363242,0.05941347,2103.9,2103.4,1.18855186]
[1773437365227,2.81690719,2103.8,2103.4,1.18855186]
[1773437365428,0.05941347,2103.9,2103.4,1.18855186]
[1773437365628,2.81692032,2103.8,2103.4,1.18855186]
[1773437365847,0.05941347,2103.9,2103.4,1.18855186]
[1773437366027,2.81691413,2103.8,2103.4,1.18855186]
[1773437366223,0.05941347,2103.9,2103.4,1.18855186]
[1773437366440,2.81890931,2103.8,2103.4,1.18855186]
[1773437366752,0.05941347,2103.9,2103.4,1.18855186]
[1773437366953,2.81891888,2103.8,2103.4,1.18855186]
[1773437367148,4.07794983,2104.0,2103.4,1.18855186]
[1773437367344,2.82136155,2103.9,2103.4,1.18855186]
[1773437367545,2.82136155,2103.8,2103.4,1.18855186]
[1773437367753,0.05941064,2104.0,2103.4,1.18855186]
[1773437368052,4.07794701,2104.1,2103.4,1.18855186]
[1773437368629,4.01853919,2104.1,2103.4,1.18855186]
[1773437369368,4.01853919,2104.1,2103.5,0.02381282]
[1773437371526,4.01853919,2104.1,2103.6,1.18843886]
[1773437372271,0.001,2103.9,2103.6,1.18843886]
[1773437374267,0.001,2103.9,2103.7,0.02381056]
[1773437374453,0.001,2103.9,2103.8,1.788]
[1773437377361,0.001,2103.9,2103.8,2.97632588]
[1773437377566,0.001,2103.9,2103.8,1.788]
[1773437379562,0.001,2103.9,2103.8,2.97632588]
[1773437379764,0.001,2103.9,2103.8,1.788]
[1773437380447,0.001,2103.9,2103.8,1.789]
[1773437384245,0.001,2103.9,2103.8,2.97732588]
[1773437386953,0.001,2103.9,2103.8,2.97842588]
[1773437397660,4.01853919,2104.3,2103.8,2.97842588]
[1773437397868,4.01853919,2104.3,2103.9,0.02379475]
[1773437399174,3.72215036,2104.6,2104.1,1.18815645]
[1773437399369,3.62215036,2104.6,2104.2,3.73101417]
[1773437399578,3.62215036,2104.6,2104.3,1.795]
[1773437400409,1.18878835,2104.8,2104.3,1.795]
[1773437400410,3.72315036,2104.8,2104.4,3.73101417]
[1773437400759,3.72315036,2104.8,2104.5,5.52701417]
[1773437401294,0.001,2104.8,2104.6,1.18787418]
[1773437401685,0.001,2105.0,2104.7,3.73101417]
[1773437402777,0.001,2105.0,2104.7,3.63101417]
[1773437403164,0.001,2105.1,2104.9,4.91871904]
[1773437403362,3.72315036,2105.3,2105.0,3.73101417]
[1773437403563,3.72315036,2105.3,2105.1,1.797]
[1773437403564,0.001,2105.2,2105.1,1.797]
[1773437403791,0.001,2105.2,2105.1,5.52801417]
[1773437405388,3.72215036,2105.5,2105.1,6.7156062]
[1773437405585,0.001,2105.3,2105.1,6.7156062]
[1773437406888,3.72215036,2105.5,2105.1,6.7156062]
[1773437407221,3.72315036,2105.4,2105.1,6.7156062]
[1773437408221,3.72215036,2105.4,2105.1,6.7156062]
[1773437408919,3.78151586,2105.6,2105.2,3.73101417]
[1773437409098,0.001,2105.5,2105.2,3.73101417]
[1773437409515,0.001,2105.5,2105.2,4.91854245]
[1773437409891,0.001,2105.5,2105.3,1.799]
[1773437410638,0.001,2105.5,2105.2,3.63101417]
[1773437410810,3.72315036,2105.5,2104.9,4.91867771]
[1773437411012,0.001,2105.5,2105.0,3.73101417]
[1773437411322,3.72315036,2105.5,2105.0,3.73101417]
[1773437411822,3.72215036,2105.3,2104.8,3.73101417]
[1773437412042,3.72215036,2105.3,2104.9,5.53101417]
[1773437412202,3.72215036,2105.3,2104.9,5.55475247]
[1773437412405,3.72315036,2105.2,2104.9,3.73101417]
[1773437412722,3.78152714,2105.2,2105.0,1.8]
[1773437412904,3.72215036,2105.0,2104.5,3.73101417]
[1773437413804,3.72315036,2104.9,2104.1,4.91916256]
[1773437414021,3.72315036,2104.9,2104.2,1.801]
[1773437414517,3.72315036,2104.9,2104.1,4.91916256]
[1773437414733,3.72315036,2104.9,2104.2,1.801]
[1773437414918,3.72315036,2104.9,2104.8,0.0011]
[1773437415118,3.72315036,2104.9,2104.5,0.0011]
[1773437415936,3.72215036,2104.7,2104.5,0.0011]
[1773437416136,3.72215036,2104.7,2104.1,3.73101417]
[1773437416315,0.001,2104.6,2104.1,3.73101417]
[1773437416514,0.001,2104.6,2104.0,1.18930757]
[1773437416515,0.001,2104.6,2104.3,3.73101417]
[1773437418128,3.72315036,2104.6,2104.4,1.802]
[1773437418630,3.72215036,2104.5,2104.1,4.91917062]
[1773437418824,3.72215036,2104.5,2104.2,1.802]
[1773437419708,3.72215036,2104.3,2104.0,1.18931287]
[1773437419908,3.72215036,2104.3,2104.1,1.803]
[1773437421212,3.72315036,2104.3,2104.2,1.803]
[1773437422109,3.72215036,2104.3,2104.2,1.803]
[1773437424244,3.58412821,2104.5,2104.2,2.99109451]
[1773437424446,0.001,2104.5,2104.3,3.50177754]
[1773437425759,0.001,2104.5,2104.4,1.18798707]
[1773437425917,0.001,2104.5,2104.4,2.99298707]
[1773437427241,0.001,2104.5,2104.4,2.99408707]
[1773437429435,3.58412821,2104.7,2104.4,2.99408707]
[1773437429638,0.06039088,2104.6,2104.4,2.99408707]
[1773437430041,3.50349976,2104.6,2104.4,1.8061]
[1773437431638,3.50349976,2104.6,2104.5,1.807]
[1773437433234,3.50349976,2104.6,2104.4,0.0011]
[1773437433732,3.50349976,2104.6,2104.5,1.809]
[1773437435841,3.50349976,2104.6,2104.4,0.0011]
[1773437436340,3.50349976,2104.6,2104.5,1.81]
[1773437436543,3.30752975,2104.5,2104.1,1.18924597]
[1773437436736,3.36792063,2104.5,2104.2,1.81]
[1773437436937,3.30752975,2104.5,2104.2,1.81]
[1773437438628,4.49546636,2104.5,2104.1,1.18925185]
[1773437438843,3.32487804,2104.4,2104.3,1.809]
[1773437439039,3.32487804,2104.4,2104.1,1.18925185]
[1773437439238,3.32487804,2104.4,2104.2,1.809]
[1773437441625,3.32487804,2104.4,2104.1,1.18925185]
[1773437441830,3.20145027,2104.2,2104.1,0.0011]
[1773437442052,3.20145027,2104.3,2104.1,1.8121]
[1773437442241,0.06039088,2104.2,2104.1,1.8121]
[1773437442441,1.18896723,2104.5,2104.2,3.50177754]
[1773437442442,0.001,2104.5,2104.2,3.50177754]
[1773437443025,3.2422438,2104.5,2104.2,3.50177754]
[1773437443250,3.2422438,2104.5,2104.2,4.68987299]
[1773437443743,3.2422438,2104.5,2104.2,3.50177754]
[1773437446970,3.2422438,2104.5,2104.1,3.00021272]
[1773437447830,3.16311074,2104.8,2104.3,3.28872978]
[1773437448055,3.12747621,2104.8,2104.3,3.28872978]
[1773437448456,3.12747621,2104.8,2104.4,1.18798707]
[1773437448657,3.12747621,2104.8,2104.5,1.814]
[1773437448861,3.14408077,2104.7,2104.6,1.814]
[1773437449075,3.14408077,2104.7,2104.4,1.18798707]
[1773437450264,3.14408077,2104.7,2104.5,1.815]
[1773437452761,3.0198892,2104.6,2104.3,4.47677122]
[1773437453060,3.0198892,2104.6,2104.4,1.816]
[1773437453839,0.001,2104.5,2104.4,1.816]
[1773437454255,0.001,2104.5,2104.4,1.8171]
[1773437455462,0.001,2104.5,2104.4,6.41319847]
[1773437461459,0.001,2104.5,2104.4,4.59719847]
[1773437461641,0.001,2104.5,2104.4,6.41719847]
[1773437461837,0.03563453,2104.8,2104.4,6.41719847]
[1773437462061,2.86425099,2104.9,2104.5,3.4081114]
[1773437462266,2.88540514,2105.1,2104.5,3.4081114]
[1773437462450,4.07300664,2105.1,2104.5,3.4081114]
[1773437462940,2.84877061,2105.0,2104.5,3.4081114]
[1773437463262,0.03663453,2105.1,2104.7,3.4081114]
[1773437463467,0.001,2105.1,2104.9,3.4081114]
[1773437464263,2.81730579,2105.1,2104.7,3.4081114]
[1773437464450,2.81730579,2105.1,2105.0,1.821]
[1773437464766,2.81630579,2105.0,2104.6,3.4081114]
[1773437464941,2.81630579,2105.0,2104.7,1.822]
[1773437465264,2.81630579,2105.0,2104.8,1.1877613]
[1773437466464,0.001,2105.1,2104.7,6.41788228]
[1773437466665,0.001,2104.9,2104.8,3.4081114]
[1773437467554,0.001,2104.9,2104.8,4.5958727]
[1773437468367,0.001,2104.9,2104.8,6.4188727]
[1773437468553,0.001,2104.9,2104.8,4.5958727]
[1773437468854,0.001,2104.9,2104.8,6.4198727]
[1773437472072,0.001,2104.9,2104.8,3.0117613]
[1773437474578,0.001,2104.9,2104.8,1.1877613]
[1773437474751,0.001,2104.9,2104.8,3.0157613]
[1773437475877,0.001,2104.9,2104.8,6.4238727]
[1773437476074,2.63483031,2104.9,2104.6,0.0011]
[1773437476873,2.63383031,2104.8,2104.4,0.0011]
[1773437477373,2.63383031,2104.8,2104.5,1.825]
[1773437479262,3.82159161,2104.8,2104.7,0.0011]
[1773437481281,1.1877613,2104.8,2104.5,1.8261]
[1773437481479,2.55358283,2104.7,2104.5,1.8261]
[1773437483200,2.55358283,2104.7,2104.5,0.0011]
[1773437483385,2.55358283,2104.7,2104.6,1.83]
[1773437483386,3.7414008,2104.7,2104.6,1.83]
[1773437484079,1.18781797,2104.7,2104.5,0.0011]
[1773437484287,2.5133764,2104.6,2104.5,0.0011]
[1773437485390,2.5133764,2104.6,2104.5,1.8321]
[1773437487967,2.5133764,2104.6,2104.5,1.8331]
[1773437493796,0.001,2104.9,2104.6,3.06434618]
[1773437493995,2.50364307,2105.8,2104.6,3.06434618]
[1773437494195,2.50364307,2105.8,2104.7,1.816]
[1773437494892,2.50364307,2105.8,2104.7,4.88034618]
[1773437496198,2.50877767,2105.6,2104.8,3.06434618]
[1773437500102,2.45291798,2105.4,2104.8,3.06434618]
[1773437502294,1.18747921,2105.3,2104.8,3.06434618]
[1773437502501,2.43305862,2105.2,2104.8,3.06434618]
[1773437506202,3.62061479,2105.2,2104.9,0.0011]
[1773437506702,2.38825321,2105.1,2104.9,0.0011]
[1773437506878,2.38715321,2104.9,2104.6,0.0011]
[1773437507079,2.37774074,2104.6,2104.4,0.0011]
[1773437508482,3.56561492,2104.6,2104.5,1.818]
[1773437508682,3.56561492,2104.6,2104.4,0.0011]
[1773437508683,2.37774074,2104.6,2104.4,0.0011]
[1773437508906,3.56562729,2104.6,2104.4,0.0011]
[1773437509806,3.56562729,2104.6,2104.5,1.822]
[1773437510107,3.56562729,2104.6,2104.4,0.0011]
[1773437510403,2.3500638,2104.5,2104.4,0.0011]
[1773437511410,2.3500638,2104.5,2104.4,1.8261]
[1773437512709,2.3500638,2104.5,2104.2,0.0011]
[1773437512885,0.74034319,2104.4,2104.3,1.827]
[1773437513384,3.05670857,2104.4,2104.3,1.827]
[1773437518007,4.24469564,2104.4,2104.3,1.827]
[1773437518188,3.05670857,2104.4,2104.3,1.827]
[1773437518384,4.24469564,2104.4,2104.2,0.0011]
[1773437518587,0.74034319,2104.4,2104.2,0.0011]
[1773437519310,1.92933383,2104.4,2104.2,0.0011]
[1773437519488,0.74134319,2104.4,2104.2,0.0011]
[1773437519693,0.74134319,2104.4,2104.3,1.8121]
[1773437519893,0.001,2104.4,2104.3,1.8121]
[1773437520203,1.18898707,2104.4,2104.2,0.0011]
[1773437520402,1.188199,2104.4,2104.2,0.0011]
[1773437520588,1.188199,2104.4,2104.2,0.0003]
[1773437521198,1.18198049,2104.4,2104.2,0.0003]
[1773437521594,1.18198049,2104.4,2104.3,1.816]
[1773437522211,1.18198049,2104.4,2104.2,0.0003]
[1773437523711,4.20140656,2104.5,2104.3,1.822]
[1773437524102,4.20140656,2104.5,2104.2,0.0003]
[1773437525915,4.20140656,2104.5,2104.3,1.825]
[1773437527703,4.20198311,2104.5,2104.3,1.825]
[1773437528118,4.20198311,2104.5,2104.2,0.0003]
[1773437528314,2.19177387,2104.4,2104.2,0.0003]
[1773437529901,2.19177387,2104.4,2104.3,1.83]
[1773437530201,2.19177387,2104.4,2104.2,0.0003]
[1773437530516,1.18804352,2104.3,2104.2,0.0003]
[1773437530812,2.17621794,2104.2,2104.0,0.0011]
[1773437532614,3.36431793,2104.2,2104.1,0.0011]
[1773437533621,3.36431793,2104.2,2103.9,0.0011]
[1773437533797,0.74091974,2104.1,2103.9,0.0011]
[1773437534321,0.74091974,2104.1,2104.0,1.832]
[1773437534616,0.74091974,2104.1,2103.9,0.0011]
[1773437536022,1.92908049,2104.1,2103.9,0.0011]
[1773437536234,0.74091974,2104.1,2103.9,0.0011]
[1773437536405,0.74091974,2104.1,2103.6,3.0500192]
[1773437536406,2.13108293,2104.0,2103.6,3.0500192]
[1773437536610,0.74091974,2103.8,2103.6,2.06398423]
[1773437536923,0.74091974,2103.8,2103.7,1.833]
[1773437537305,1.92924562,2103.8,2103.7,1.833]
[1773437538198,1.92924562,2103.8,2103.4,3.0500192]
[1773437538199,3.01764303,2103.7,2103.4,3.0500192]
[1773437538397,1.92924562,2103.8,2103.6,1.834]
[1773437540023,1.18832588,2103.8,2103.3,3.0500192]
[1773437540204,3.01764303,2103.8,2103.3,3.0500192]
[1773437540407,3.01764303,2103.9,2103.5,3.0500192]
[1773437540732,4.20593957,2103.9,2103.5,3.0500192]
[1773437542001,4.20593957,2103.9,2103.6,4.71131657]
[1773437543120,3.01764303,2103.9,2103.6,4.71131657]
[1773437543327,4.69443826,2104.3,2103.7,2.88131657]
[1773437543501,2.76443781,2104.2,2103.7,2.88131657]
[1773437544307,2.76443781,2104.2,2103.7,4.06966864]
[1773437544521,3.95253852,2104.2,2103.8,2.88131657]
[1773437545029,3.95253852,2104.2,2103.9,2.88241657]
[1773437546233,3.95255281,2104.2,2103.9,2.88241657]
[1773437547336,0.001,2104.3,2103.9,2.88241657]
[1773437547534,0.001,2104.3,2104.0,2.88131657]
[1773437548108,1.18796965,2104.5,2104.1,2.88131657]
[1773437548315,1.92882454,2104.6,2104.3,2.88131657]
[1773437548828,4.69326235,2104.6,2104.3,2.88131657]
[1773437554324,1.92882454,2104.6,2104.3,2.88131657]
[1773437554527,4.69326235,2104.6,2104.3,2.88131657]
[1773437554729,3.9522267,2104.8,2104.4,2.88131657]
[1773437554935,1.18778889,2104.8,2104.4,2.88131657]
[1773437555132,2.76443781,2104.7,2104.4,2.88131657]
[1773437555445,3.50535755,2104.7,2104.4,2.88131657]
[1773437556245,1.18787418,2104.6,2104.4,2.88131657]
[1773437556818,0.74091974,2104.7,2104.4,2.88131657]
[1773437556995,1.92872122,2104.8,2104.4,2.88131657]
[1773437557338,4.69315903,2104.8,2104.4,2.88131657]
[1773437557648,2.76443781,2104.7,2104.2,4.71031657]
[1773437557853,1.92872122,2104.8,2104.2,4.71031657]
[1773437557854,3.50535755,2104.5,2104.2,4.71031657]
[1773437558052,0.001,2104.4,2104.2,4.71031657]
[1773437558550,0.001,2104.4,2104.2,1.829]
[1773437558753,0.001,2104.4,2104.2,4.71031657]
[1773437561661,2.76543781,2104.4,2104.2,1.829]
[1773437562362,0.001,2104.4,2104.2,1.829]
[1773437562965,2.76443781,2104.3,2103.9,0.0011]
[1773437563135,2.76443781,2104.1,2103.9,0.0011]
[1773437564163,0.74091974,2104.2,2103.9,2.88241657]
[1773437564332,0.74091974,2104.2,2104.0,4.70031657]
[1773437565159,1.92907269,2104.2,2104.0,4.70031657]
[1773437566258,1.92907269,2104.2,2103.7,0.0011]
[1773437566437,2.7281015,2104.1,2103.7,0.47260539]
[1773437567534,4.75239996,2104.3,2103.9,0.46818116]
[1773437567535,1.18808793,2104.3,2103.9,0.46818116]
[1773437567846,3.91618943,2104.3,2103.9,0.46818116]
[1773437571840,3.91618943,2104.3,2104.1,0.0011]
[1773437576250,3.91618943,2104.3,2103.9,0.23238849]
[1773437576450,3.91615244,2104.3,2103.9,0.23238849]
[1773437581080,2.81881027,2104.2,2103.9,0.0011]
[1773437582351,2.81881027,2104.1,2104.0,1.828]
[1773437582559,2.81881027,2104.1,2103.9,0.0011]
[1773437583085,1.18819222,2104.1,2103.9,0.0011]
[1773437583264,2.81881027,2104.0,2103.9,0.0011]
[1773437583663,2.81881027,2104.0,2103.9,1.8291]
[1773437588384,1.18919222,2104.1,2103.9,1.8291]
[1773437588561,4.00800249,2104.1,2103.9,1.8291]
[1773437589690,4.00797259,2104.1,2103.9,1.8291]
[1773437589991,1.18916232,2104.1,2103.9,2.79212733]
[1773437590288,0.001,2104.1,2103.9,2.79212733]
[1773437603801,0.001,2104.1,2104.0,1.29914077]
[1773437605572,0.001,2104.1,2103.9,1.8291]
[1773437605773,0.001,2104.1,2103.9,3.16775479]
[1773437613204,0.001,2104.1,2103.9,1.8291]
[1773437613910,0.001,2104.1,2103.9,3.31580138]
[1773437614913,0.001,2104.4,2104.1,1.50312267]
[1773437615115,0.001,2104.4,2104.2,1.52031089]
[1773437622288,0.001,2104.4,2104.3,1.63450745]
[1773437623892,0.001,2104.4,2104.3,1.66450745]
[1773437634629,0.001,2104.4,2104.3,2.85255097]
[1773437635697,0.001,2104.4,2104.3,4.68155097]
[1773437637226,3.41985924,2104.7,2104.4,1.87708169]
[1773437637418,3.41985924,2104.7,2104.5,0.03]
[1773437640331,3.41985924,2105.1,2104.5,1.94337118]
[1773437640510,3.41985924,2104.9,2104.5,3.13129809]
[1773437641229,3.41985924,2104.9,2104.5,1.94337118]
[1773437641633,3.41985924,2104.9,2104.5,3.13129668]
[1773437641834,3.41985924,2104.9,2104.5,1.94337118]
[1773437646033,4.6075919,2104.9,2104.5,1.94337118]
[1773437646217,0.001,2104.7,2104.5,1.94337118]
[1773437646415,0.001,2104.7,2104.6,1.98144299]
[1773437649245,0.001,2104.7,2104.6,3.87647095]
[1773437652141,4.99273076,2105.3,2104.6,3.87647095]
[1773437652142,3.41985924,2105.4,2104.7,2.03404485]
[1773437653737,4.60728433,2105.4,2104.9,2.05408572]
[1773437653923,3.41985924,2105.3,2104.9,2.05408572]
[1773437655637,3.41985924,2105.3,2104.9,3.24173924]
[1773437655865,3.41985924,2105.3,2105.0,2.06815791]
[1773437656043,3.41985924,2105.3,2105.1,1.835]
[1773437656241,3.41985924,2105.3,2105.2,0.03]
[1773437657124,3.41985924,2105.5,2105.2,0.03]
[1773437658845,1.18737095,2105.5,2105.2,0.03]
[1773437659046,3.41985924,2105.4,2105.2,0.03]
[1773437660048,3.41985924,2105.5,2105.2,0.03]
[1773437661236,3.41985924,2105.5,2105.2,3.33452345]
[1773437662034,3.41985924,2105.5,2105.2,2.14700285]
[1773437664143,3.61630298,2105.4,2105.2,1e-08]
[1773437664462,3.61630298,2105.4,2104.8,4.75093053]
[1773437664463,3.61630298,2105.2,2104.6,0.01969594]
[1773437665551,3.61630298,2105.0,2104.6,0.01969594]
[1773437665765,3.61630298,2105.0,2104.7,1.817]
[1773437667250,4.35675906,2105.0,2104.6,0.0011]
[1773437667755,3.61630298,2104.8,2104.6,0.0011]
[1773437668451,3.61630298,2104.8,2104.7,1.822]
[1773437669131,3.61630298,2104.8,2104.6,0.0011]
[1773437670648,4.80406741,2104.8,2104.7,1.825]
[1773437674170,4.80406741,2104.8,2104.6,0.0011]
[1773437674371,3.61630298,2104.7,2104.6,0.0011]
[1773437675565,3.61630298,2104.7,2104.6,1.8301]
[1773437678767,4.80412072,2104.7,2104.6,1.8301]
[1773437680050,3.61630298,2104.6,2104.4,0.0011]
[1773437680248,3.61630298,2104.6,2104.5,1.823]
[1773437680840,3.61630298,2104.7,2104.5,1.823]
[1773437682369,3.61630298,2104.8,2104.5,4.05150553]
[1773437685179,4.80409899,2104.8,2104.5,4.05150553]
[1773437687073,4.80409899,2104.8,2104.7,0.0011]
[1773437694450,3.93296719,2104.7,2104.4,0.01175335]
[1773437694876,3.93296719,2104.7,2104.4,0.0011]
[1773437695052,3.93296719,2104.5,2104.2,0.0011]
[1773437695561,3.93241719,2104.3,2104.2,1.823]
[1773437696072,3.93241719,2104.3,2104.0,0.017961]
[1773437696073,3.93241719,2104.3,2104.0,0.0011]
[1773437696370,3.93241719,2104.2,2104.0,0.0011]
[1773437696685,3.93241719,2104.5,2104.0,0.09038709]
[1773437696872,5.12025814,2104.7,2104.0,0.09038709]
[1773437697048,3.93241719,2104.6,2104.0,0.09038709]
[1773437697250,3.93241719,2104.6,2104.1,1.815]
[1773437697480,3.93241719,2104.6,2104.1,1.90910643]
[1773437698578,3.93241719,2104.5,2104.1,3.09723478]
[1773437699152,3.93241719,2104.9,2104.2,0.09878018]
[1773437700549,3.93241719,2104.8,2104.4,0.107849]
[1773437701877,1.18773445,2104.9,2104.4,0.107849]
[1773437701878,3.93241719,2104.9,2104.4,0.107849]
[1773437702383,0.001,2105.0,2104.3,0.11571112]
[1773437702551,0.001,2105.0,2104.5,0.11571112]
[1773437705475,0.001,2105.0,2104.7,0.12845128]
[1773437705674,0.001,2105.0,2104.8,1.95345128]
[1773437706782,0.001,2105.0,2104.9,0.1325499]
[1773437715505,0.001,2105.0,2104.8,1.87251045]
[1773437715695,0.001,2105.0,2104.8,2.03291503]
[1773437722912,3.93391719,2105.0,2104.8,1.825]
[1773437727716,3.93391719,2105.0,2104.8,1.8261]
[1773437734230,0.001,2105.0,2104.8,1.8261]
[1773437734413,0.001,2105.0,2104.8,1.9935694]